bitfinex/quotes_SOLUSD_20251009
["timestamp","ask_amount","ask_price","bid_price","bid_amount"]
[1759997910110,20.8,223.39,223.29,0.69]
[1759997910111,0.33,223.34,223.3,0.69]
[1759997910419,0.33,223.4,223.31,0.69]
[1759997910612,0.33,223.4,223.35,20.8]
[1759997910809,0.33,223.4,223.35,21.49]
[1759997911008,1.03,223.4,223.35,20.8]
[1759997911317,0.33,223.36,223.33,20.8]
[1759997911524,0.33,223.39,223.34,0.69]
[1759997911914,0.33,223.39,223.33,20.8]
[1759997912126,0.33,223.39,223.34,0.69]
[1759997912325,0.33,223.39,223.35,0.69]
[1759997912624,0.33,223.39,223.35,20.8]
[1759997914414,0.33,223.37,223.32,5.16784688]
[1759997914730,0.33,223.37,223.33,0.69]
[1759997914907,0.33,223.37,223.34,0.69]
[1759997915523,0.33,223.37,223.31,25.27806667]
[1759997915729,0.33,223.37,223.32,0.69]
[1759997915930,0.33,223.37,223.33,0.69]
[1759997916713,0.33,223.37,223.33,5.1675986]
[1759997917029,3.6654828,223.37,223.29,5.16829255]
[1759997917222,3.3354828,223.31,223.27,0.69]
[1759997917421,0.33,223.3,223.27,0.69]
[1759997918107,0.33,223.3,223.28,0.69]
[1759997918331,0.33,223.3,223.29,0.69]
[1759997918513,0.33,223.35,223.32,20.8]
[1759997918713,0.33,223.35,223.32,21.49]
[1759997918923,0.33,223.35,223.32,0.69]
[1759997919304,0.33,223.35,223.31,20.8]
[1759997919508,3.3354828,223.33,223.28,0.69]
[1759997919729,3.3354828,223.33,223.22,34.46]
[1759997919730,0.33,223.3,223.29,0.69]
[1759997920029,0.33,223.33,223.29,21.49]
[1759997920228,0.33,223.33,223.3,0.69]
[1759997920405,0.33,223.33,223.29,20.8]
[1759997920605,4.3654828,223.33,223.26,11.56647521]
[1759997920828,0.33,223.3,223.26,16.04549659]
[1759997921044,0.33,223.3,223.27,0.69]
[1759997921330,0.33,223.32,223.27,0.69]
[1759997921513,0.33,223.32,223.28,0.69]
[1759997921719,0.33,223.3,223.26,36.15547722]
[1759997921925,0.33,223.3,223.26,36.84547722]
[1759997922117,0.33,223.32,223.26,36.84547722]
[1759997922430,0.33,223.3,223.26,36.84547722]
[1759997922612,0.33,223.3,223.27,0.69]
[1759997922812,0.33,223.3,223.26,36.15547722]
[1759997923235,0.33,223.3,223.21,0.4480086]
[1759997923236,3.3354828,223.29,223.23,0.69]
[1759997923425,0.33,223.29,223.24,10.87647521]
[1759997923633,0.7,223.35,223.24,10.87647521]
[1759997923634,0.33,223.31,223.27,20.8]
[1759997923820,0.33,223.3,223.27,21.49]
[1759997924134,0.33,223.3,223.26,20.8]
[1759997924311,0.33,223.3,223.24,0.67]
[1759997924518,0.33,223.27,223.24,21.47]
[1759997925420,0.33,223.27,223.24,25.94935317]
[1759997925737,0.33,223.27,223.26,20.8]
[1759997927042,4.47756646,223.34,223.26,20.8]
[1759997927043,0.33,223.34,223.32,20.8]
[1759997927627,0.33,223.34,223.3,0.67]
[1759997927830,0.33,223.36,223.32,10.87647521]
[1759997928135,0.33,223.4,223.33,0.67]
[1759997928335,0.33,223.37,223.33,0.67]
[1759997928638,0.33,223.4,223.32,31.67647521]
[1759997928844,0.33,223.35,223.3,0.67]
[1759997929023,3.3354828,223.34,223.27,0.67]
[1759997929221,0.33,223.33,223.27,0.67]
[1759997929537,0.33,223.33,223.29,4.47848089]
[1759997929745,0.33,223.33,223.32,20.8]
[1759997930323,0.33,223.33,223.3,20.8]
[1759997930519,0.33,223.35,223.32,0.67]
[1759997930741,0.33,223.35,223.3,20.8]
[1759997930931,0.33,223.35,223.31,0.67]
[1759997931933,0.33,223.35,223.34,20.8]
[1759997932941,0.33,223.39,223.34,21.47]
[1759997933128,0.33,223.41,223.35,0.67]
[1759997933336,0.33,223.37,223.35,0.67]
[1759997933740,0.33,223.4,223.35,10.87647521]
[1759997933931,0.33,223.4,223.39,20.8]
[1759997934239,0.33,223.37,223.36,21.47]
[1759997934923,4.47509964,223.46,223.35,20.8]
[1759997934924,0.33,223.39,223.35,20.8]
[1759997935139,0.33,223.37,223.35,20.8]
[1759997935731,0.33,223.36,223.33,10.87647521]
[1759997935936,0.33,223.41,223.36,36.15348998]
[1759997936449,0.33,223.41,223.37,0.68]
[1759997936656,0.33,223.41,223.38,0.68]
[1759997936827,0.33,223.41,223.36,20.8]
[1759997937031,0.33,223.36,223.34,0.68]
[1759997937236,0.33,223.36,223.35,21.48]
[1759997937451,0.33,223.36,223.35,20.8]
[1759997937927,0.33,223.36,223.35,21.48]
[1759997938528,0.33,223.36,223.35,20.8]
[1759997939447,0.33,223.36,223.35,21.48]
[1759997939626,0.33,223.38,223.35,21.48]
[1759997939826,0.33,223.38,223.36,0.68]
[1759997940226,0.33,223.38,223.37,0.68]
[1759997941228,1.02,223.38,223.28,0.68]
[1759997941452,3.6654828,223.33,223.28,0.68]
[1759997941746,3.6654828,223.33,223.22,4.47988531]
[1759997941747,0.33,223.31,223.25,21.48]
[1759997941947,0.33,223.31,223.26,4.47908268]
[1759997942142,0.33,223.31,223.29,20.8]
[1759997942345,0.33,223.29,223.24,5.1592905]
[1759997942651,0.33,223.29,223.27,20.8]
[1759997943025,0.33,223.29,223.25,0.68]
[1759997943239,0.33,223.29,223.26,0.68]
[1759997943443,0.33,223.29,223.28,20.8]
[1759997943646,0.33,223.27,223.25,0.68]
[1759997943850,0.33,223.27,223.26,21.48]
[1759997944235,0.33,223.27,223.23,5.15966329]
[1759997944480,0.33,223.27,223.21,0.68]
[1759997944694,0.33,223.23,223.21,0.68]
[1759997945682,0.33,223.23,223.19,0.68]
[1759997945876,0.33,223.19,223.17,11.55647521]
[1759997946082,0.33,223.19,223.18,11.55647521]
[1759997946283,0.33,223.19,223.18,32.35647521]
[1759997946684,0.33,223.19,223.18,11.55647521]
[1759997947189,0.33,223.19,223.18,16.03716344]
[1759997947590,0.33,223.21,223.19,20.8]
[1759997947785,0.33,223.21,223.19,21.48]
[1759997949194,0.33,223.19,223.16,10.87647521]
[1759997949488,0.33,223.17,223.16,10.87647521]
[1759997949987,0.33,223.17,223.16,11.55647521]
[1759997950369,0.33,223.17,223.16,16.03756501]
[1759997951678,0.33,223.24,223.18,20.8]
[1759997951967,23.63605788,223.39,223.18,20.8]
[1759997951968,0.33,223.25,223.22,20.8]
[1759997953168,4.92609257,223.32,223.17,10.87647521]
[1759997953169,0.33,223.22,223.17,10.87647521]
[1759997953488,0.33,223.22,223.2,20.8]
[1759997954293,0.33,223.22,223.16,4.48097621]
[1759997954498,0.33,223.18,223.16,4.48097621]
[1759997954674,0.33,223.18,223.16,5.16097621]
[1759997955173,0.33,223.18,223.17,0.68]
[1759997955772,0.33,223.18,223.17,20.8]
[1759997955968,0.33,223.18,223.17,0.68]
[1759997956285,0.33,223.18,223.17,21.48]
[1759997956491,0.33,223.18,223.16,4.48108348]
[1759997956675,0.33,223.18,223.15,0.1]
[1759997956991,0.33,223.16,223.15,0.1]
[1759997958299,4.3554828,223.16,223.15,0.1]
[1759997958472,3.6654828,223.16,223.15,0.1]
[1759997959174,4.3554828,223.16,223.15,0.1]
[1759997960177,1.02,223.16,223.15,0.1]
[1759997960378,4.3554828,223.16,223.15,0.1]
[1759997963390,1.02,223.16,223.15,0.1]
[1759997963598,3.6654828,223.16,223.15,0.1]
[1759997964797,4.3554828,223.16,223.15,0.1]
[1759997965205,3.6654828,223.16,223.15,0.1]
[1759997966373,4.3554828,223.16,223.15,0.1]
[1759997967880,1.02,223.16,223.15,0.1]
[1759997968191,2.37844082,223.16,223.15,0.1]
[1759997968395,1.68844082,223.16,223.15,0.1]
[1759997970199,0.33,223.16,223.15,0.1]
[1759997970498,1.68844082,223.16,223.15,0.1]
[1759997970878,2.37844082,223.16,223.15,0.1]
[1759997971897,3.1424659,223.16,223.15,0.1]
[1759997972701,8.0717651,223.16,223.15,0.1]
[1759997973701,19.2744896,223.16,223.12,0.1]
[1759997973906,2.4524659,223.13,223.12,0.1]
[1759997974204,38.9031412,223.13,223.12,0.1]
[1759997974501,39.5931412,223.13,223.12,0.1]
[1759997974674,41.95236758,223.13,223.12,0.1]
[1759997974878,44.07483348,223.13,223.12,0.1]
[1759997975074,0.33,223.1,223.09,0.1]
[1759997975300,5.7131412,223.1,223.09,0.1]
[1759997976305,36.7406753,223.1,223.09,0.1]
[1759997976803,41.91297023,223.1,223.09,0.1]
[1759997977398,44.03543613,223.1,223.09,0.1]
[1759997977781,41.91297023,223.1,223.09,0.1]
[1759997977976,36.7406753,223.1,223.09,0.1]
[1759997978392,36.7206753,223.1,223.09,0.1]
[1759997978689,2.4524659,223.1,223.09,0.1]
[1759997978892,2.4524659,223.1,223.09,0.79]
[1759997978893,0.33,223.1,223.09,0.79]
[1759997979096,0.33,223.1,223.09,21.59]
[1759997980407,0.33,223.1,223.09,0.79]
[1759997980608,0.33,223.12,223.09,16.14897106]
[1759997980907,0.33,223.12,223.1,21.49]
[1759997981084,0.33,223.15,223.11,20.8]
[1759997981294,0.33,223.15,223.12,0.69]
[1759997981493,0.33,223.17,223.12,21.49]
[1759997981694,0.33,223.17,223.16,20.8]
[1759997982003,13.31856559,223.3,223.16,20.8]
[1759997982004,0.33,223.2,223.17,20.8]
[1759997982202,0.33,223.24,223.21,20.8]
[1759997982517,0.33,223.24,223.22,0.69]
[1759997982890,0.33,223.24,223.22,5.16985609]
[1759997983093,0.33,223.24,223.23,0.69]
[1759997983293,0.33,223.24,223.23,21.49]
[1759997983499,0.33,223.24,223.23,0.69]
[1759997983698,0.33,223.24,223.23,21.49]
[1759997984031,0.33,223.25,223.24,20.8]
[1759997984201,5.24749332,223.29,223.24,32.33647521]
[1759997984400,0.33,223.3,223.25,0.66]
[1759997984814,0.33,223.3,223.28,20.8]
[1759997985013,0.33,223.3,223.29,0.66]
[1759997985693,0.33,223.32,223.29,0.66]
[1759997985916,0.33,223.32,223.29,21.46]
[1759997986213,0.33,223.32,223.3,0.66]
[1759997986716,0.53,223.35,223.33,20.8]
[1759997986919,0.53,223.35,223.33,21.46]
[1759997987090,0.33,223.3,223.26,21.46]
[1759997987290,0.33,223.28,223.26,21.46]
[1759997987494,0.33,223.28,223.27,0.66]
[1759997987694,0.33,223.28,223.27,32.33647521]
[1759997987918,0.2,223.35,223.27,32.33647521]
[1759997987919,0.33,223.34,223.27,32.33647521]
[1759997988146,0.33,223.34,223.33,20.8]
[1759997988509,0.33,223.34,223.33,21.46]
[1759997988715,0.33,223.34,223.31,20.8]
[1759997988919,0.33,223.34,223.31,21.46]
[1759997989114,0.2,223.35,223.32,17.23175645]
[1759997989312,0.2,223.35,223.34,10.87647521]
[1759997989731,0.2,223.35,223.34,11.53647521]
[1759997989915,0.2,223.35,223.26,47.18176355]
[1759997989916,0.2,223.35,223.3,0.66]
[1759997990229,0.33,223.33,223.31,0.66]
[1759997991133,0.33,223.33,223.3,20.8]
[1759997991134,0.33,223.33,223.32,0.66]
[1759997991908,0.53,223.35,223.34,20.8]
[1759997992115,0.53,223.35,223.34,0.66]
[1759997992721,0.53,223.35,223.34,21.46]
[1759997993039,0.53,223.35,223.34,0.66]
[1759997993332,0.2,223.35,223.34,0.66]
[1759997993831,0.53,223.35,223.34,0.66]
[1759997994022,0.53,223.35,223.34,21.46]
[1759997994223,0.53,223.35,223.34,0.66]
[1759997994810,0.53,223.35,223.34,25.93747828]
[1759997994811,0.2,223.35,223.34,25.93747828]
[1759997995629,0.2,223.35,223.34,21.46]
[1759997996338,0.53,223.35,223.34,21.46]
[1759997996519,0.53,223.35,223.34,0.66]
[1759997996840,0.33,223.31,223.3,11.59647521]
[1759997997724,0.33,223.31,223.3,10.87647521]
[1759997998319,0.33,223.31,223.3,11.59647521]
[1759997998532,0.33,223.31,223.3,16.07475555]
[1759997999237,0.33,223.31,223.3,0.72]
[1759998000333,0.33,223.31,223.27,10.87647521]
[1759998000533,0.33,223.27,223.24,10.87647521]
[1759998000742,4.67743177,223.35,223.18,15.68215664]
[1759998000743,0.33,223.29,223.26,31.67647521]
[1759998001041,0.33,223.29,223.27,0.72]
[1759998001241,0.33,223.29,223.24,0.72]
[1759998001538,0.33,223.25,223.24,11.59647521]
[1759998001917,0.33,223.25,223.23,10.87647521]
[1759998002117,0.33,223.25,223.23,31.67647521]
[1759998002329,0.33,223.25,223.23,32.39647521]
[1759998002919,0.33,223.23,223.22,33.5]
[1759998003124,0.33,223.23,223.21,10.87647521]
[1759998003746,0.33,223.23,223.21,31.67647521]
[1759998003955,0.33,223.23,223.21,16.12396853]
[1759998004162,0.33,223.26,223.25,10.87647521]
[1759998004464,0.33,223.28,223.27,31.67647521]
[1759998004620,0.33,223.32,223.27,37.64396853]
[1759998004825,0.2,223.35,223.31,5.24749332]
[1759998005329,0.2,223.35,223.33,10.87647521]
[1759998005638,0.53,223.35,223.32,0.72]
[1759998005841,0.53,223.35,223.29,4.47830006]
[1759998005842,0.53,223.35,223.31,5.24749332]
[1759998006148,0.33,223.32,223.31,20.60197676]
[1759998006657,0.33,223.32,223.3,5.24749332]
[1759998006957,0.33,223.3,223.24,0.72]
[1759998007123,0.6482094,223.35,223.22,10.87647521]
[1759998007124,0.33,223.25,223.22,10.87647521]
[1759998007440,0.33,223.25,223.24,10.87647521]
[1759998007830,0.33,223.27,223.26,20.8]
[1759998008652,0.33,223.27,223.21,0.72]
[1759998008653,1.05,223.27,223.16,10.87647521]
[1759998008824,0.33,223.2,223.16,0.72]
[1759998009024,0.33,223.2,223.09,26.8634827]
[1759998009025,0.33,223.2,223.09,36.59346556]
[1759998009233,0.33,223.17,223.16,0.72]
[1759998009452,0.33,223.17,223.16,20.8]
[1759998009653,0.33,223.17,223.14,10.87647521]
[1759998009827,0.33,223.15,223.14,10.87647521]
[1759998010029,0.33,223.15,223.14,0.72]
[1759998010338,0.33,223.17,223.14,16.07796665]
[1759998010650,0.33,223.17,223.15,0.72]
[1759998010834,0.33,223.17,223.16,0.72]
[1759998011039,0.33,223.17,223.16,11.59647521]
[1759998011929,0.33,223.17,223.16,10.87647521]
[1759998012130,0.33,223.17,223.13,16.12396853]
[1759998012331,0.33,223.14,223.13,36.92396853]
[1759998012532,0.33,223.14,223.13,37.64396853]
[1759998012728,0.33,223.14,223.11,10.87647521]
[1759998012948,0.33,223.12,223.11,10.87647521]
[1759998013329,0.4482094,223.25,223.11,20.60606256]
[1759998013330,0.33,223.14,223.11,20.60606256]
[1759998013547,0.33,223.16,223.13,36.92396853]
[1759998013744,0.33,223.16,223.11,15.68732911]
[1759998013745,0.33,223.16,223.15,16.12396853]
[1759998013946,0.33,223.16,223.13,10.87647521]
[1759998014231,0.33,223.14,223.13,10.87647521]
[1759998014441,0.33,223.14,223.13,21.52]
[1759998014640,0.4482094,223.26,223.11,10.87647521]
[1759998014641,0.33,223.12,223.11,10.87647521]
[1759998014953,0.4482094,223.26,223.09,0.1]
[1759998014954,0.33,223.1,223.09,15.45897106]
[1759998015151,0.33,223.1,223.09,16.17897106]
[1759998015829,0.33,223.1,223.09,21.42646438]
[1759998016466,0.33,223.1,223.09,16.17897106]
[1759998016633,0.33,223.1,223.09,0.1]
[1759998016634,1.05,223.1,223.09,0.1]
[1759998016949,6.29749332,223.1,223.09,0.1]
[1759998017743,1.05,223.1,223.09,0.1]
[1759998017938,6.74570272,223.1,223.09,0.1]
[1759998018134,1.05,223.1,223.09,0.1]
[1759998018657,6.29749332,223.1,223.09,0.1]
[1759998019055,5.57749332,223.1,223.09,0.1]
[1759998019234,0.33,223.1,223.09,0.1]
[1759998020486,6.29749332,223.1,223.09,0.1]
[1759998020689,0.33,223.1,223.09,0.1]
[1759998021776,1.05,223.1,223.09,0.1]
[1759998022280,11.22799765,223.1,223.09,0.1]
[1759998024274,44.74799765,223.1,223.09,0.1]
[1759998024983,11.22799765,223.1,223.09,0.1]
[1759998025553,1.4982094,223.1,223.09,0.1]
[1759998025755,0.33,223.1,223.09,0.1]
[1759998026879,6.24749332,223.1,223.09,0.1]
[1759998027090,6.69570272,223.1,223.09,0.1]
[1759998027489,11.17799765,223.1,223.09,0.1]
[1759998028971,5.57749332,223.1,223.09,0.1]
[1759998029196,39.09749332,223.1,223.09,0.1]
[1759998029366,0.33,223.1,223.09,0.1]
[1759998029770,5.57749332,223.1,223.09,0.1]
[1759998029981,6.24749332,223.1,223.09,0.1]
[1759998030290,6.69570272,223.1,223.09,0.1]
[1759998030589,0.33,223.1,223.09,0.1]
[1759998030764,5.57749332,223.1,223.09,0.1]
[1759998031404,6.24749332,223.1,223.09,0.1]
[1759998031697,5.57749332,223.1,223.09,0.1]
[1759998032195,11.17799765,223.1,223.09,0.1]
[1759998032676,5.93050433,223.1,223.09,0.1]
[1759998032881,11.17799765,223.1,223.09,0.1]
[1759998033882,9.27779702,223.1,223.09,0.1]
[1759998034300,5.93050433,223.1,223.09,0.1]
[1759998034601,42.79779702,223.1,223.09,0.1]
[1759998034989,9.27779702,223.1,223.09,0.1]
[1759998035188,42.79779702,223.1,223.09,0.1]
[1759998036794,5.93050433,223.1,223.09,0.1]
[1759998036974,42.79779702,223.1,223.09,0.1]
[1759998037174,42.79779702,223.1,223.0,20.8]
[1759998037498,42.79779702,223.1,222.8,2.33885503]
[1759998037499,0.33,222.93,222.91,3.34729269]
[1759998037800,0.33,222.96,222.95,31.67647521]
[1759998038008,3.34729269,223.05,222.99,20.8]
[1759998038295,33.52,223.03,222.99,20.8]
[1759998038506,33.52,223.04,223.0,0.67]
[1759998038688,33.52,223.04,223.01,21.47]
[1759998038885,33.52,223.06,223.02,0.67]
[1759998039088,33.52,223.06,223.02,24.81729269]
[1759998039398,33.52,223.06,223.03,0.67]
[1759998039576,33.52,223.06,223.04,0.67]
[1759998040274,33.52,223.06,222.97,11.2120402]
[1759998040275,0.4482094,223.05,222.98,0.67]
[1759998040508,3.34729269,223.03,222.99,0.67]
[1759998040797,38.00311973,223.06,222.96,20.8]
[1759998040798,1.1182094,223.02,222.96,20.8]
[1759998041018,1.1182094,223.02,222.89,0.1]
[1759998041019,34.19,223.01,222.89,0.1]
[1759998041176,11.32468461,223.0,222.89,0.1]
[1759998041604,33.52,222.99,222.9,0.67]
[1759998041808,3.34729269,222.94,222.89,0.1]
[1759998041979,3.34729269,222.92,222.89,0.1]
[1759998042186,0.67,222.91,222.89,0.1]
[1759998042377,37.98550209,222.9,222.89,0.1]
[1759998042590,38.00550209,222.9,222.89,0.1]
[1759998043191,48.8819773,222.9,222.89,0.1]
[1759998043502,0.4482094,222.9,222.89,0.1]
[1759998043818,37.55729269,222.9,222.89,0.1]
[1759998044295,38.69631673,222.9,222.89,0.1]
[1759998044608,34.22,222.9,222.89,0.1]
[1759998045119,37.56729269,222.9,222.89,0.1]
[1759998045406,36.88729269,222.9,222.89,0.1]
[1759998045612,48.8919773,222.9,222.89,0.1]
[1759998046085,15.3519773,222.9,222.89,0.1]
[1759998046279,48.9319773,222.9,222.89,0.1]
[1759998046482,25.27550209,222.9,222.89,0.1]
[1759998046805,38.05550209,222.9,222.89,0.1]
[1759998047102,3.79550209,222.9,222.89,0.1]
[1759998047305,36.92729269,222.9,222.89,0.1]
[1759998047688,37.60729269,222.9,222.89,0.1]
[1759998047900,10.87647521,222.88,222.86,0.1]
[1759998048101,3.79550209,222.87,222.86,0.1]
[1759998048289,5.61513002,222.87,222.86,0.1]
[1759998048484,20.8,222.84,222.76,0.7]
[1759998048696,3.34729269,222.78,222.76,0.7]
[1759998048913,36.92729269,222.78,222.77,0.7]
[1759998049116,33.58,222.78,222.77,0.7]
[1759998049407,36.92729269,222.78,222.77,0.7]
[1759998049619,0.4482094,222.83,222.77,0.7]
[1759998049620,3.34729269,222.8,222.77,0.7]
[1759998049813,33.58,222.79,222.78,0.7]
[1759998050007,0.4482094,222.85,222.78,0.7]
[1759998050211,34.24,222.84,222.75,20.8]
[1759998050504,28.7682094,222.83,222.74,0.7]
[1759998050703,3.34729269,222.77,222.74,0.7]
[1759998051005,3.34729269,222.77,222.72,20.8]
[1759998051006,36.92729269,222.77,222.75,0.7]
[1759998051211,33.58,222.77,222.71,0.7]
[1759998051411,3.34729269,222.74,222.71,0.7]
[1759998051711,3.34729269,222.73,222.69,0.7]
[1759998051894,3.34729269,222.72,222.7,0.7]
[1759998052087,3.34729269,222.72,222.66,0.1]
[1759998052088,3.34729269,222.71,222.66,0.1]
[1759998052286,3.34729269,222.67,222.66,0.1]
[1759998052927,36.96729269,222.67,222.66,0.1]
[1759998053533,37.64729269,222.67,222.66,0.1]
[1759998054203,24.82729269,222.67,222.66,0.1]
[1759998054601,4.49115242,222.66,222.53,0.7]
[1759998054798,1.1282094,222.65,222.53,0.7]
[1759998055001,20.8,222.62,222.32,19.99999999]
[1759998055213,15.71903349,222.66,222.44,0.7]
[1759998055214,3.34729269,222.56,222.44,0.7]
[1759998055528,1.1482094,222.55,222.45,0.71]
[1759998055691,33.94,222.54,222.45,0.71]
[1759998055896,33.98,222.53,222.45,0.71]
[1759998056241,33.98,222.53,222.3,19.04887126]
[1759998056242,0.4482094,222.52,222.3,8.89906583]
[1759998056394,0.4482094,222.52,222.33,20.8]
[1759998056395,34.0,222.51,222.33,20.8]
[1759998056599,34.0,222.51,222.29,13.44679036]
[1759998056600,19.99999999,222.34,222.03,19.99999999]
[1759998056804,19.99999999,222.34,222.17,3.51587518]
[1759998056805,3.34729269,222.3,222.17,3.51587518]
[1759998057027,12.646035,222.2,221.99,11.85864681]
[1759998057224,11.806035,222.26,222.15,2.34447866]
[1759998057993,11.806035,222.26,222.19,3.34729269]
[1759998058194,11.806035,222.29,222.13,15.75653895]
[1759998058496,11.806035,222.24,222.14,0.71]
[1759998058696,11.806035,222.2,222.14,0.71]
[1759998058898,1.1482094,222.33,222.16,20.8]
[1759998058899,11.806035,222.3,222.16,20.8]
[1759998059095,11.806035,222.3,222.21,20.8]
[1759998059316,11.806035,222.36,222.25,31.67647521]
[1759998059519,11.806035,222.38,222.3,10.87647521]
[1759998059699,21.62,222.47,222.29,20.8]
[1759998059700,11.806035,222.35,222.29,20.8]
[1759998059907,11.806035,222.39,222.26,0.71]
[1759998060098,11.806035,222.33,222.26,0.71]
[1759998060302,11.806035,222.33,222.28,20.8]
[1759998060498,0.4482094,222.42,222.22,4.500045]
[1759998060499,11.806035,222.39,222.31,3.34729269]
[1759998060738,10.366035,222.51,222.43,20.8]
[1759998060897,11.64,222.69,222.43,20.8]
[1759998060898,10.366035,222.58,222.44,31.67647521]
[1759998061103,10.366035,222.6,222.53,3.34729269]
[1759998061299,10.366035,222.65,222.56,3.34729269]
[1759998061527,27.22,222.75,222.6,3.34729269]
[1759998061528,10.366035,222.67,222.6,3.34729269]
[1759998061724,10.366035,222.66,222.59,20.8]
[1759998062022,10.366035,222.6,222.44,13.16964048]
[1759998062205,4.49047799,222.7,222.35,35.04]
[1759998062206,10.366035,222.56,222.55,20.8]
[1759998062406,10.366035,222.6,222.55,20.8]
[1759998062625,10.366035,222.59,222.55,20.8]
[1759998062817,10.366035,222.63,222.58,20.8]
[1759998063025,0.7,222.62,222.49,10.87647521]
[1759998063245,10.366035,222.55,222.52,20.8]
[1759998063403,0.7,222.62,222.52,20.8]
[1759998063404,10.366035,222.6,222.53,14.2237679]
[1759998063603,10.366035,222.62,222.57,20.8]
[1759998063803,10.366035,222.56,222.48,20.8]
[1759998064008,10.366035,222.6,222.55,3.34729269]
[1759998064205,10.366035,222.6,222.55,4.49337227]
[1759998064444,1.1482094,222.68,222.59,3.34729269]
[1759998064445,10.366035,222.65,222.59,3.34729269]
[1759998064610,10.366035,222.65,222.61,3.34729269]
[1759998064811,10.366035,222.67,222.59,20.8]
[1759998065005,10.366035,222.66,222.61,3.34729269]
[1759998065229,10.366035,222.68,222.59,31.67647521]
[1759998065427,10.366035,222.68,222.56,3.34729269]
[1759998065428,10.366035,222.68,222.63,24.14729269]
[1759998065630,11.066035,222.68,222.5,9.63396499]
[1759998065834,10.366035,222.66,222.58,35.0237679]
[1759998066128,10.366035,222.6,222.49,10.87647521]
[1759998066305,10.366035,222.6,222.47,10.87647521]
[1759998066508,10.366035,222.53,222.34,9.63396499]
[1759998066709,10.366035,222.55,222.43,3.34729269]
[1759998066912,0.4482094,222.59,222.52,3.34729269]
[1759998066913,10.366035,222.57,222.52,3.34729269]
[1759998067109,10.366035,222.59,222.56,3.34729269]
[1759998067412,10.366035,222.64,222.58,3.34729269]
[1759998067615,10.366035,222.66,222.62,3.34729269]
[1759998067810,10.366035,222.66,222.61,20.8]
[1759998067811,10.366035,222.66,222.64,3.34729269]
[1759998068019,10.366035,222.66,222.61,20.8]
[1759998068219,10.366035,222.62,222.61,20.8]
[1759998068427,10.366035,222.66,222.61,24.14729269]
[1759998068621,10.366035,222.66,222.63,3.34729269]
[1759998068821,10.366035,222.6,222.54,3.34729269]
[1759998069024,10.366035,222.54,222.48,3.34729269]
[1759998069225,10.366035,222.56,222.47,10.87647521]
[1759998069423,10.366035,222.58,222.52,3.34729269]
[1759998069623,10.366035,222.52,222.47,3.34729269]
[1759998069816,10.366035,222.52,222.4,10.87647521]
[1759998070020,10.366035,222.52,222.49,3.34729269]
[1759998070338,10.366035,222.57,222.54,20.8]
[1759998070528,0.7,222.56,222.53,20.8]